bitfinex-derivatives/quotes_SOLF0:USTF0_20250625
["timestamp","ask_amount","ask_price","bid_price","bid_amount"]
[1750812658176,41.3534,145.42,145.35,51.13655226]
[1750812658380,6.8736,145.41,145.35,42.61003889]
[1750812658569,37.88043889,145.42,145.35,40.22213889]
[1750812658981,6.60246742,145.44,145.35,40.22213889]
[1750812658982,628.3,145.45,145.37,3.40043889]
[1750812659278,635.1719,145.45,145.42,6.8727]
[1750812659977,635.1719,145.45,145.39,3.40043889]
[1750812659978,34.48,145.45,145.39,3.40043889]
[1750812660184,34.48,145.45,145.41,3.40043889]
[1750812660477,41.3505,145.48,145.45,6.8714]
[1750812661971,34.48,145.48,145.41,2.2275]
[1750812662174,34.48,145.48,145.42,3.40043889]
[1750812662378,34.48,145.48,145.43,6.8723]
[1750812662680,6.8714,145.46,145.42,3.40043889]
[1750812662878,34.48,145.48,145.42,3.40043889]
[1750812663176,6.8714,145.46,145.41,3.40043889]
[1750812663483,6.8714,145.46,145.43,6.8724]
[1750812663682,6.8714,145.46,145.41,3.40043889]
[1750812664383,6.8714,145.46,145.43,6.8724]
[1750812664982,6.8718,145.45,145.43,6.8724]
[1750812665184,34.48,145.48,145.43,6.8724]
[1750812665681,6.8715,145.46,145.43,6.8724]
[1750812666081,6.8715,145.46,145.44,6.8721]
[1750812666585,6.8709,145.47,145.44,6.8721]
[1750812666881,34.48,145.48,145.45,6.8715]
[1750812667479,41.3504,145.48,145.45,6.8715]
[1750812669286,34.48,145.48,145.46,6.871]
[1750812669679,34.48,145.48,145.4,36.8828]
[1750812669875,34.48,145.48,145.42,3.40043889]
[1750812670177,6.8715,145.46,145.42,3.40043889]
[1750812670781,6.8715,145.46,145.44,6.8721]
[1750812670989,6.8715,145.46,145.42,3.40043889]
[1750812671290,6.8715,145.46,145.43,6.8723]
[1750812672091,6.8715,145.46,145.42,3.40043889]
[1750812672092,34.48,145.48,145.42,3.40043889]
[1750812672985,4.6376,145.5,145.44,3.40043889]
[1750812673175,43.5844,145.5,145.44,3.40043889]
[1750812673590,36.7147,145.5,145.44,3.40043889]
[1750812673784,6.87,145.49,145.46,6.8709]
[1750812674684,43.5842,145.5,145.47,6.8705]
[1750812675289,6.8699,145.49,145.47,6.8705]
[1750812675683,36.7147,145.5,145.47,6.8705]
[1750812675884,43.5842,145.5,145.44,3.40043889]
[1750812676493,43.5842,145.5,145.44,37.86043889]
[1750812676494,34.46,145.5,145.44,37.86043889]
[1750812677194,34.46,145.5,145.46,3.40043889]
[1750812677592,34.46,145.5,145.49,6.8697]
[1750812677895,34.46,145.53,145.46,3.40043889]
[1750812678084,34.46,145.53,145.49,6.8696]
[1750812678391,6.8684,145.52,145.49,6.8696]
[1750812680694,6.8684,145.52,145.5,6.8692]
[1750812680893,6.8684,145.52,145.46,3.40043889]
[1750812681088,6.8684,145.52,145.49,6.8693]
[1750812685095,34.46,145.53,145.46,3.40043889]
[1750812685498,34.46,145.53,145.48,3.40043889]
[1750812686198,41.3279,145.53,145.48,3.40043889]
[1750812686387,41.3279,145.53,145.51,6.8685]
[1750812688899,34.46,145.53,145.51,6.8685]
[1750812689100,34.46,145.53,145.52,6.8683]
[1750812689598,34.42,145.56,145.53,6.8679]
[1750812689799,6.8672,145.55,145.53,6.8679]
[1750812690190,34.42,145.56,145.54,6.8674]
[1750812690797,34.42,145.56,145.55,6.8669]
[1750812691497,34.42,145.59,145.54,3.40043889]
[1750812692288,2.3223,145.63,145.58,3.40043889]
[1750812692492,2.3223,145.63,145.61,6.8641]
[1750812692795,9.1855,145.63,145.61,6.8641]
[1750812693200,2.3223,145.63,145.61,6.8641]
[1750812693595,631.30043889,145.66,145.62,6.8635]
[1750812694398,2.3746,145.72,145.6,3.40043889]
[1750812694399,2637.54,145.84,145.6,37.80043889]
[1750812694598,3.40043889,145.7,145.63,3.40043889]
[1750812694794,34.4,145.71,145.63,3.40043889]
[1750812694999,4.4354835,145.74,145.64,34.4]
[1750812695000,34.4,145.74,145.64,34.4]
[1750812695301,4.6595,145.73,145.67,3.40043889]
[1750812696096,2.3994,145.73,145.67,3.40043889]
[1750812696298,34.4,145.74,145.71,3.40043889]
[1750812696709,34.4,145.78,145.73,3.40043889]
[1750812697008,34.4,145.81,145.77,3.40043889]
[1750812697298,34.4,145.81,145.77,10.25683889]
[1750812697502,41.255,145.81,145.77,3.40043889]
[1750812697801,41.255,145.81,145.77,10.25693889]
[1750812698204,34.4,145.81,145.77,10.25693889]
[1750812698993,41.255,145.81,145.77,10.25693889]
[1750812699304,34.4,145.81,145.75,3.40043889]
[1750812699603,34.4,145.81,145.75,10.25783889]
[1750812699799,34.4,145.81,145.77,3.40043889]
[1750812700110,34.4,145.81,145.79,3.40043889]
[1750812700910,36.7027,145.83,145.79,3.40043889]
[1750812701396,34.38,145.83,145.79,3.40043889]
[1750812701596,39.1821,145.86,145.81,3.40043889]
[1750812701794,6.8528,145.85,145.81,3.40043889]
[1750812702005,36.7809,145.86,145.81,3.40043889]
[1750812702206,36.7809,145.86,145.8,5.6386702]
[1750812702400,36.7809,145.86,145.8,6.8548]
[1750812702603,2.4009,145.86,145.79,5.6386702]
[1750812702811,2.4009,145.86,145.81,5.6386702]
[1750812703204,34.38,145.87,145.81,5.6386702]
[1750812703704,34.38,145.87,145.83,5.6386702]
[1750812704297,34.38,145.87,145.84,6.8529]
[1750812704602,2.2472,145.89,145.83,5.6386702]
[1750812704804,6.8522,145.87,145.83,5.6386702]
[1750812705003,2.2472,145.89,145.84,6.8532]
[1750812705308,2.3226,145.91,145.85,5.6386702]
[1750812705504,2.3226,145.91,145.85,12.4911702]
[1750812705703,6.8512,145.89,145.85,6.8525]
[1750812706013,2.3226,145.91,145.83,5.6386702]
[1750812706216,6.8513,145.89,145.83,5.6386702]
[1750812706406,2.3226,145.91,145.85,5.6386702]
[1750812706702,6.8508,145.9,145.86,6.8522]
[1750812708307,9.1727,145.91,145.85,5.6386702]
[1750812708704,2.3226,145.91,145.85,5.6386702]
[1750812709307,9.1729,145.91,145.87,6.8516]
[1750812709508,9.1729,145.91,145.85,5.6386702]
[1750812710008,9.1729,145.91,145.87,6.8515]
[1750812710602,9.1729,145.91,145.88,6.8513]
[1750812710908,2.3226,145.91,145.87,5.6386702]
[1750812711104,2.3226,145.91,145.89,6.8505]
[1750812711305,34.36,145.93,145.85,34.34]
[1750812711508,2.3679,145.98,145.89,5.6386702]
[1750812711509,2.2681,145.97,145.89,5.6386702]
[1750812711703,34.34,145.96,145.93,6.849]
[1750812712603,34.34,145.96,145.91,5.6386702]
[1750812713108,34.34,145.96,145.93,6.8489]
[1750812713308,9.1156,145.97,145.91,5.6386702]
[1750812713309,2.2681,145.97,145.91,5.6386702]
[1750812713712,2.2681,145.97,145.93,6.8488]
[1750812714209,6.8479,145.96,145.93,6.8488]
[1750812715009,2.2681,145.97,145.88,5.6386702]
[1750812715314,7.9067702,145.97,145.88,5.6386702]
[1750812715514,6.8493,145.93,145.89,6.8506]
[1750812715715,35.04,145.95,145.89,6.8506]
[1750812715915,35.04,145.95,145.88,5.6386702]
[1750812716214,35.04,145.95,145.87,35.04]
[1750812716413,35.04,145.95,145.84,592.28]
[1750812716414,5.6386702,145.93,145.84,40.6786702]
[1750812716620,5.6386702,145.93,145.86,6.852]
[1750812716806,5.6386702,145.93,145.84,40.6786702]
[1750812717007,6.8512,145.89,145.85,6.8525]
[1750812717311,35.04,145.91,145.84,40.6786702]
[1750812717515,35.04,145.91,145.84,35.04]
[1750812717720,2.4121,145.9,145.83,6.8535]
[1750812718013,4.8171,145.9,145.83,6.8535]
[1750812718412,5.6386702,145.89,145.81,42.9190702]
[1750812718612,6.8532,145.85,145.81,5.6386702]
[1750812718807,5.6386702,145.89,145.81,5.6386702]
[1750812718808,35.04,145.87,145.81,5.6386702]
[1750812719012,35.04,145.87,145.83,6.8537]
[1750812719231,6.8529,145.85,145.79,35.04]
[1750812719406,35.04,145.87,145.8,5.6386702]
[1750812719608,35.04,145.87,145.82,6.8542]
[1750812720019,6.8529,145.85,145.82,6.8542]
[1750812720223,35.04,145.87,145.83,6.8537]
[1750812720515,35.04,145.87,145.8,5.6386702]
[1750812720720,35.04,145.87,145.85,6.8527]
[1750812720915,35.04,145.87,145.82,5.6386702]
[1750812721107,41.8919,145.87,145.82,5.6386702]
[1750812721308,35.04,145.87,145.82,5.6386702]
[1750812721814,35.04,145.87,145.84,6.853]
[1750812722023,35.04,145.87,145.82,5.6386702]
[1750812722421,35.04,145.87,145.85,6.8527]
[1750812722623,35.04,145.87,145.82,5.6386702]
[1750812722921,41.8919,145.87,145.84,6.853]
[1750812723617,35.04,145.87,145.82,5.6386702]
[1750812724324,41.8919,145.87,145.84,6.853]
[1750812724827,6.8524,145.86,145.84,6.853]
[1750812725123,6.8524,145.86,145.83,6.8535]
[1750812725425,41.8921,145.87,145.82,5.6386702]
[1750812725923,6.8526,145.86,145.82,5.6386702]
[1750812726318,35.04,145.87,145.82,5.6386702]
[1750812726618,41.8921,145.87,145.84,6.853]
[1750812727122,35.04,145.87,145.82,5.6386702]
[1750812727512,6.853,145.85,145.82,6.854]
[1750812727823,35.04,145.87,145.8,5.63819706]
[1750812728030,35.04,145.87,145.79,35.04]
[1750812728321,6.8533,145.84,145.81,6.8544]
[1750812728827,6.8538,145.83,145.8,6.8549]
[1750812729530,6.8542,145.82,145.79,6.8554]
[1750812729721,35.04,145.83,145.76,37.3868]
[1750812729926,6.855,145.81,145.76,35.04]
[1750812731028,6.855,145.81,145.78,6.8558]
[1750812731226,35.04,145.83,145.76,35.04]
[1750812731227,6.8545,145.82,145.76,35.04]
[1750812731427,35.04,145.83,145.77,5.63819706]
[1750812731620,2.216,145.86,145.79,5.63819706]
[1750812731820,35.04,145.85,145.81,5.63819706]
[1750812732018,35.04,145.86,145.83,6.8534]
[1750812732221,35.04,145.86,145.76,35.04]
[1750812732423,35.04,145.86,145.8,5.63819706]
[1750812732729,6.853,145.85,145.82,6.8539]
[1750812732931,6.853,145.85,145.8,5.63819706]
[1750812734134,35.04,145.86,145.78,5.63819706]
[1750812734632,6.8551,145.81,145.76,40.67819706]
[1750812734832,35.04,145.82,145.76,40.67819706]
[1750812735426,35.04,145.82,145.74,8.01239706]
[1750812736026,6.8557,145.79,145.76,6.8568]
[1750812736736,6.8557,145.79,145.74,8.01239706]
[1750812736936,6.8554,145.8,145.74,8.01239706]
[1750812737241,35.04,145.82,145.76,6.8566]
[1750812737631,6.8556,145.79,145.76,6.8566]
[1750812738234,6.8564,145.78,145.75,6.8573]
[1750812738540,4.49648584,145.81,145.74,5.63819706]
[1750812738831,11.35208584,145.8,145.76,6.8566]
[1750812739035,4.49648584,145.79,145.76,6.8566]
[1750812739233,6.8556,145.8,145.76,6.8566]
[1750812739436,4.50816055,145.79,145.74,5.63819706]
[1750812739636,4.80844942,145.81,145.74,5.63819706]
[1750812739940,16.18038003,145.8,145.77,6.8565]
[1750812740234,4.50816006,145.79,145.77,6.8565]
[1750812740437,4.50816006,145.78,145.77,6.8565]
[1750812741641,6.8549,145.81,145.78,6.856]
[1750812741844,9.34714267,145.8,145.78,6.856]
[1750812742038,9.34714267,145.79,145.77,6.8563]
[1750812742243,4.52305661,145.78,145.77,6.8563]
[1750812742646,6.8557,145.79,145.74,5.64258016]
[1750812743439,6.8557,145.79,145.77,6.8563]
[1750812744039,6.8554,145.8,145.77,6.8563]
[1750812744559,6.8554,145.8,145.78,6.856]
[1750812745050,6.8554,145.8,145.74,5.64258016]
[1750812745449,6.8554,145.8,145.77,6.8563]
[1750812746148,6.8549,145.81,145.73,35.04]
[1750812746341,35.04,145.82,145.74,5.64258016]
[1750812746542,4.21665708,145.81,145.74,5.64258016]
[1750812746738,35.04,145.82,145.78,6.8561]
[1750812746943,6.8548,145.81,145.78,6.8561]
[1750812747448,6.8552,145.8,145.78,6.8561]
[1750812748949,35.04,145.82,145.74,5.64258016]
[1750812749150,35.04,145.82,145.76,5.64258016]
[1750812749345,41.8944,145.82,145.79,6.8553]
[1750812749850,35.04,145.82,145.8,6.8548]
[1750812750339,35.04,145.82,145.78,3.38412144]
[1750812750537,41.8945,145.82,145.79,6.8552]
[1750812750740,41.8945,145.82,145.78,3.38412144]
[1750812751056,41.8945,145.82,145.79,6.8552]
[1750812751252,41.8945,145.82,145.78,3.38412144]
[1750812751951,41.8945,145.82,145.8,6.8551]
[1750812752356,41.8945,145.82,145.78,3.38412144]
[1750812752539,6.8545,145.82,145.8,6.8551]
[1750812754247,37.6808,145.84,145.8,6.8551]
[1750812754248,6.854,145.83,145.8,6.8551]
[1750812754444,37.6808,145.84,145.8,6.8551]
[1750812754846,6.8542,145.83,145.8,6.8551]
[1750812755147,37.6808,145.84,145.8,6.8551]
[1750812755550,6.8538,145.83,145.81,6.8546]
[1750812755850,37.6808,145.84,145.8,3.38416785]
[1750812756044,35.4,145.84,145.82,3.38416785]
[1750812756243,35.4,145.87,145.82,3.38236344]
[1750812756850,35.4,145.87,145.83,6.8535]
[1750812757051,35.4,145.87,145.78,2.3753]
[1750812757250,3.38236344,145.86,145.79,3.38236344]
[1750812757453,3.38236344,145.86,145.8,6.8549]
[1750812758055,3.38236344,145.86,145.79,10.23776344]
[1750812758551,6.8546,145.82,145.79,10.23776344]
[1750812759157,6.8546,145.82,145.8,6.8551]
[1750812761952,6.854,145.83,145.8,6.8551]
[1750812762962,6.8543,145.82,145.8,6.8551]
[1750812763654,6.854,145.83,145.81,6.8546]
[1750812763857,4.84987946,145.86,145.77,53.441846]
[1750812764057,41.0401244,145.87,145.77,53.441846]
[1750812764260,6.8533,145.84,145.81,6.8543]
[1750812765262,6.8531,145.85,145.79,5.6401244]
[1750812765564,4.8602069,145.86,145.81,5.63850467]
[1750812765755,35.38,145.87,145.81,5.63850467]
[1750812766065,4.86012774,145.86,145.79,5.63850467]
[1750812766362,4.86012774,145.85,145.81,6.8544]
[1750812766665,39.56656064,145.87,145.81,6.8544]
[1750812766854,6.8541,145.83,145.78,5.63850467]
[1750812767956,6.8541,145.83,145.8,6.8547]
[1750812769660,2.2853,145.89,145.78,5.63850467]
[1750812769862,44.44644791,145.88,145.8,5.63850467]
[1750812770055,4.87282498,145.87,145.8,5.63850467]
[1750812770264,4.87282498,145.86,145.83,5.63722714]
[1750812770457,2.2853,145.89,145.83,5.63722714]
[1750812770663,4.87130638,145.88,145.83,5.63722714]
[1750812770968,2.2853,145.89,145.87,6.8516]
[1750812771265,34.3441,145.98,145.87,6.8516]
[1750812771266,2.3769,145.93,145.87,5.63722714]
[1750812771465,4.87220402,145.92,145.91,6.8497]
[1750812771662,35.38,145.94,145.87,5.63722714]
[1750812771867,11.72130113,145.93,145.9,6.8501]
[1750812772063,4.87220113,145.92,145.9,6.8501]
[1750812772264,6.8491,145.93,145.9,6.8501]
[1750812773267,41.01722714,145.94,145.85,41.01722714]
[1750812773465,41.01722714,145.94,145.82,2.3038]
[1750812773466,5.63722714,145.92,145.83,5.63722714]
[1750812773659,4.85940308,145.91,145.83,5.63722714]
[1750812773864,4.85940308,145.91,145.85,6.8525]
[1750812773865,6.8515,145.88,145.85,6.8525]
[1750812774066,35.38,145.9,145.83,5.63722714]
[1750812774368,6.8512,145.89,145.85,6.8524]
[1750812775274,6.8512,145.89,145.86,6.8523]
[1750812776372,6.8512,145.89,145.83,5.63722714]
[1750812778177,6.8512,145.89,145.86,6.8521]
[1750812778679,6.8514,145.89,145.82,37.6838]
[1750812778977,6.8514,145.89,145.82,43.32102714]
[1750812779175,6.8516,145.88,145.85,6.8525]
[1750812779374,35.38,145.9,145.82,43.32102714]
[1750812779880,6.8511,145.89,145.82,43.32102714]
[1750812780377,6.8511,145.89,145.86,6.852]
[1750812781784,2.2978,145.95,145.86,5.63722714]
[1750812782082,40.02837084,145.94,145.86,5.63722714]
[1750812782384,40.02837084,145.94,145.87,3.37959148]
[1750812782583,6.8493,145.93,145.9,6.8503]
[1750812783076,6.8493,145.93,145.91,6.8499]
[1750812783271,42.0088,145.94,145.87,3.37959148]
[1750812783681,42.0088,145.94,145.92,6.8494]
[1750812784181,9.146,145.95,145.93,6.849]
[1750812784386,35.16,145.97,145.91,3.37959148]
[1750812784883,6.8482,145.95,145.92,6.8493]
[1750812785071,38.53959148,145.97,145.89,3.37959148]
[1750812785387,3.37959148,145.95,145.87,5.56319148]
[1750812786480,6.8491,145.93,145.9,6.8502]
[1750812786684,3.37959148,145.95,145.87,5.56319148]
[1750812786870,6.8488,145.94,145.91,6.8497]
[1750812787181,3.37959148,145.95,145.87,5.56319148]
[1750812787686,3.37959148,145.95,145.87,3.37959148]
[1750812787888,3.37959148,145.93,145.85,3.37959148]
[1750812788180,6.8509,145.89,145.83,38.53959148]
[1750812788385,38.53959148,145.91,145.83,38.53959148]
[1750812788788,6.8513,145.89,145.85,6.8526]
[1750812788987,38.53959148,145.91,145.85,6.8526]
[1750812789783,6.8514,145.88,145.85,6.8526]
[1750812791481,6.8514,145.88,145.83,35.16]
[1750812791686,40.7963579,145.91,145.83,35.16]
[1750812792077,6.8524,145.86,145.83,35.16]
[1750812792280,6.8524,145.86,145.81,2.3953]
[1750812793187,6.8524,145.86,145.83,6.8535]
[1750812794188,6.8529,145.85,145.8,35.16]
[1750812794488,35.16,145.87,145.8,35.16]
[1750812794690,6.8528,145.85,145.82,6.8542]
[1750812795992,6.8533,145.84,145.81,6.8543]
[1750812797196,6.8537,145.83,145.8,6.8549]
[1750812797492,2.349,145.86,145.78,2.2842]
[1750812797689,2.349,145.86,145.8,6.8548]
[1750812798593,2.349,145.86,145.81,6.8546]
[1750812799193,2.349,145.86,145.8,6.855]
[1750812799793,6.854,145.83,145.8,6.855]
[1750812800692,2.349,145.86,145.78,2.2842]
[1750812801293,6.854,145.83,145.8,6.8551]
[1750812801594,2.349,145.86,145.79,5.6363579]
[1750812801787,9.2016,145.86,145.83,6.8537]
[1750812806404,9.2016,145.86,145.84,6.8533]
[1750812806597,35.16,145.87,145.79,5.6363579]
[1750812807003,42.0121,145.87,145.84,6.853]
[1750812809111,35.16,145.87,145.85,6.8524]
[1750812809719,35.16,145.87,145.79,12.7190961]
[1750812809916,5.6363579,145.86,145.78,2.2842]
[1750812810120,35.16,145.87,145.78,2.2842]
[1750812810415,6.8528,145.85,145.8,3.38316914]
[1750812810606,38.54316914,145.87,145.8,3.38316914]
[1750812811215,6.8528,145.85,145.82,6.8542]
[1750812812207,38.54316914,145.87,145.82,6.8542]
[1750812812410,38.54316914,145.87,145.81,6.8544]
[1750812812716,6.8537,145.84,145.81,6.8544]
[1750812812914,38.54316914,145.87,145.78,5.66736914]
[1750812813616,38.54316914,145.87,145.81,6.8544]
[1750812813912,38.54316914,145.87,145.78,2.2842]
[1750812814114,38.54316914,145.87,145.81,6.8547]
[1750812814313,35.16,145.87,145.8,3.38316914]
[1750812814518,6.8523,145.86,145.8,3.38316914]
[1750812814818,6.8523,145.86,145.83,6.8535]
[1750812815716,42.0121,145.87,145.84,6.8531]
[1750812816214,35.16,145.87,145.8,3.38316914]
[1750812816416,6.8526,145.86,145.83,6.8535]
[1750812816820,6.8526,145.86,145.84,6.8532]
[1750812817022,6.8526,145.86,145.8,3.38316914]
[1750812817321,6.8526,145.86,145.83,6.8534]
[1750812819416,6.8528,145.85,145.83,6.8534]
[1750812819817,6.8528,145.85,145.82,6.854]
[1750812820623,35.16,145.87,145.82,6.854]
[1750812822823,6.8526,145.86,145.82,6.854]
[1750812823926,6.8526,145.86,145.83,6.8537]
[1750812825723,6.8528,145.85,145.83,6.8537]
[1750812827830,6.8525,145.86,145.83,6.8537]
[1750812829528,35.16,145.87,145.79,3.38316914]
[1750812829737,42.0121,145.87,145.81,3.38316914]
[1750812831132,42.0121,145.87,145.85,6.8527]
[1750812831330,6.8523,145.86,145.81,3.38316914]
[1750812832138,6.8523,145.86,145.84,6.853]
[1750812832637,42.0121,145.87,145.84,6.853]
[1750812834435,6.8523,145.86,145.84,6.853]
[1750812835436,42.0121,145.87,145.84,6.853]
[1750812836336,6.8523,145.86,145.83,6.8535]
[1750812837539,6.8523,145.86,145.84,6.8532]
[1750812837839,42.0121,145.87,145.84,6.8532]
[1750812838225,35.16,145.87,145.81,16.10226524]
[1750812838537,626.96,145.9,145.83,3.38316914]
[1750812838836,4.21409025,145.89,145.87,6.8516]
[1750812839039,633.8107,145.9,145.87,6.8516]
[1750812839235,4.21408665,145.89,145.87,6.8516]
[1750812839536,633.8107,145.9,145.87,6.8516]
[1750812839840,4.21662899,145.89,145.88,6.8514]
[1750812840029,633.8107,145.9,145.88,6.8514]
[1750812840939,633.8107,145.9,145.87,6.8516]
[1750812841338,2.1904,145.91,145.85,3.38316914]
[1750812841641,4.21461706,145.94,145.89,3.38316914]
[1750812841836,34.98,145.95,145.91,3.38316914]
[1750812842234,34.98,145.95,145.93,6.8488]
[1750812842440,41.8283,145.95,145.91,3.38316914]
[1750812842945,34.98,145.95,145.88,16.10226524]
[1750812843338,4.86281121,145.94,145.9,3.38316914]
[1750812843539,34.98,145.95,145.9,3.38316914]
[1750812843844,34.98,145.95,145.93,6.8488]
[1750812844737,34.98,145.95,145.9,3.38316914]
[1750812845746,41.8284,145.95,145.92,6.8491]
[1750812846147,6.8486,145.94,145.91,6.8496]
[1750812847050,41.8283,145.95,145.92,6.8494]
[1750812847240,34.98,145.95,145.92,6.8494]
[1750812847545,41.8282,145.95,145.92,6.8494]
[1750812848040,34.98,145.95,145.93,6.849]
[1750812848437,37.2907,145.99,145.91,3.38316914]
[1750812848635,4.86143476,145.98,145.93,3.38316914]
[1750812848941,2.3307,145.99,145.95,3.38316914]
[1750812849141,39.6171,146.01,145.95,3.38316914]
[1750812849142,34.96,146.01,145.95,3.38316914]
[1750812849739,41.8054,146.01,145.98,6.8464]
[1750812850346,6.8458,146.0,145.97,6.8469]
[1750812850543,34.96,146.01,145.95,3.38316914]
[1750812850941,6.8465,145.99,145.96,6.8474]
[1750812853351,6.846,146.0,145.97,6.8471]
[1750812854451,6.8463,145.99,145.96,6.8474]
[1750812854651,34.96,146.01,145.96,6.8474]
[1750812854955,6.8465,145.99,145.96,6.8474]
[1750812855253,34.96,146.01,145.94,38.34316914]
[1750812856052,34.96,146.01,145.96,3.38316914]
[1750812856547,41.8055,146.01,145.98,6.8464]
[1750812857551,6.8458,146.0,145.97,6.8469]
[1750812857947,6.8458,146.0,145.96,3.38316914]
[1750812858152,41.8055,146.01,145.98,6.8463]
[1750812858754,6.8458,146.0,145.98,6.8463]
[1750812859759,41.8057,146.01,145.98,6.8463]
[1750812860457,41.8057,146.01,145.99,6.8462]
[1750812860656,34.96,146.01,145.99,6.8462]
[1750812860849,34.96,146.01,145.95,3.38316914]
[1750812861159,41.8056,146.01,145.95,3.38316914]
[1750812861656,34.96,146.01,145.99,6.846]
[1750812863463,34.96,146.01,146.0,6.8458]
[1750812864158,37.2555,146.04,146.01,6.8453]
[1750812864356,44.0996,146.04,146.01,6.8453]
[1750812864858,44.0996,146.04,146.02,6.8448]
[1750812865058,44.0996,146.04,145.99,3.38316914]
[1750812865253,44.0996,146.04,146.01,6.845]
[1750812865457,37.2555,146.04,145.99,3.38316914]
[1750812865656,37.2555,146.04,145.97,3.38316914]
[1750812865657,40.63866914,146.04,145.97,3.38316914]
[1750812865864,6.845,146.02,145.99,6.846]
[1750812866257,40.63866914,146.04,145.97,3.38316914]
[1750812867061,6.8451,146.02,145.99,6.846]
[1750812867559,6.8451,146.02,146.0,6.8457]
[1750812867763,6.8445,146.03,146.0,6.8457]
[1750812868659,6.8448,146.02,145.99,6.846]
[1750812870564,6.8454,146.01,145.98,6.8464]
[1750812870765,6.8454,146.01,145.97,3.38316914]
[1750812870957,40.63866914,146.04,145.97,3.38316914]
[1750812871262,40.63866914,146.04,145.99,6.8461]
[1750812872166,6.8453,146.01,145.99,6.8461]
[1750812873466,6.845,146.02,145.99,6.8461]
[1750812873965,6.846,146.0,145.96,2.3747]
[1750812874457,6.8455,146.01,145.96,2.3747]
[1750812874867,40.63866914,146.04,145.96,2.3747]
[1750812874868,40.63866914,146.04,145.99,6.846]
[1750812875065,6.8451,146.02,145.99,6.846]
[1750812876266,6.8454,146.01,145.98,6.8465]
[1750812877360,6.8451,146.02,145.99,6.8461]
[1750812877760,40.63866914,146.04,145.99,6.8461]
[1750812878866,6.8451,146.02,145.99,6.8461]
[1750812882258,40.63866914,146.04,145.96,5.75786914]
[1750812882462,37.2555,146.04,145.98,3.38316914]
[1750812883160,44.0998,146.04,146.01,6.8451]
[1750812883779,34.94,146.04,145.98,3.38316914]
[1750812884264,34.94,146.04,146.03,6.8443]
[1750812884471,34.94,146.04,145.99,34.78]
[1750812884472,6.8439,146.04,145.99,34.78]
[1750812884772,6.8439,146.04,146.02,6.8446]
[1750812885163,6.8436,146.05,145.99,34.78]
[1750812885375,4.92723914,146.04,146.03,6.8441]
[1750812886266,4.92594756,146.04,146.03,6.8441]
[1750812886674,6.8431,146.06,146.03,6.8441]
[1750812886875,4.9259384,146.05,146.03,6.8441]
[1750812887170,6.8431,146.06,146.03,6.8441]
[1750812887368,4.92590215,146.05,146.03,6.8441]
[1750812887569,6.8431,146.06,146.03,6.8441]
[1750812887767,4.92591287,146.05,146.03,6.8441]
[1750812887968,6.8431,146.06,146.03,6.8441]
[1750812888173,4.9259124,146.05,146.03,6.8441]
[1750812888373,6.8431,146.06,146.03,6.8441]
[1750812888580,4.92487536,146.05,146.0,3.38316914]
[1750812888775,4.92487536,146.04,145.98,3.38316914]
[1750812888974,3.38316914,146.05,145.98,3.38316914]
[1750812889173,11.78123133,146.04,146.01,6.845]
[1750812889476,6.8441,146.04,146.01,6.845]
[1750812892679,4.94468015,146.03,146.01,6.845]
[1750812892870,6.8441,146.04,146.01,6.845]
[1750812893076,4.94468809,146.03,146.01,6.845]
[1750812893380,6.8441,146.04,146.01,6.845]
[1750812893569,4.94457177,146.03,146.01,6.845]
[1750812893774,6.8441,146.04,146.01,6.845]
[1750812893973,4.94457177,146.03,146.01,6.845]
[1750812894274,6.8441,146.04,146.01,6.845]